fUSD/lending_fUSD_20240811
["ID","MTS","AMOUNT","RATE_DAILY","PERIOD"]
[334652970,1723396243122,-488.0,0.00010706,2]
[334652971,1723396243132,-44.35328105,0.000109,2]
[334652972,1723396243144,-361.01292754,0.000109,2]
[334652973,1723396243232,-2109.7800008,0.000109,2]
[334652974,1723396243244,-1325.20799028,0.000109,2]
[334652975,1723396243255,-330.5,0.000109,2]
[334652979,1723396243860,-7819.77729956,0.000109,2]
[334652980,1723396243877,-4986.26623947,0.000109,2]
[334652981,1723396243889,-669.24902375,0.000109,2]
[334652982,1723396243910,-170999.38859284,0.000109,2]
[334652983,1723396243920,-767.1747113,0.000109,2]
[334652984,1723396243929,-246.504769,0.000109,2]
[334652985,1723396243939,-189.55387216,0.000109,2]
[334652986,1723396243949,-255.0,0.00010957,2]
[334652987,1723396243959,-250.0,0.00010959,2]
[334652988,1723396243968,-200.0,0.00010973,2]
[334652989,1723396243978,-71182.1677516,0.00010997,2]
[334652990,1723396243988,-450.03,0.00010999,2]
[334652991,1723396243998,-737.0,0.00011,2]
[334652992,1723396244008,-34418.40733093,0.00011,2]
[334652993,1723396244018,-65605.15858366,0.00011,2]
[334652994,1723396244030,-1070.22201432,0.00011,2]
[334652995,1723396244042,-1469.59370028,0.00011,2]
[334652996,1723396244054,-836.86095673,0.00011,2]
[334652997,1723396244066,-353.45656742,0.00011,2]
[334652998,1723396244079,-1058.55765,0.00011,2]
[334652999,1723396244104,-110931.50000003,0.00011,2]
[334653000,1723396244116,-11199.67287327,0.00011,2]
[334653016,1723396246179,-1505.125,0.00011,2]
[334653017,1723396246190,-809.79453324,0.00011,2]
[334653018,1723396246201,-776.31930374,0.00011,2]
[334653019,1723396246212,-3589.98717869,0.00011,2]
[334653020,1723396246224,-582.27653367,0.00011,2]
[334653021,1723396246235,-15387.9933009,0.00011,2]
[334653022,1723396246247,-61801.49528378,0.00011,2]
[334653023,1723396246258,-19638.74163035,0.00011,2]
[334653024,1723396246272,-4972.96,0.00011,2]
[334653025,1723396246284,-19635.40584579,0.00011,2]
[334653026,1723396246295,-213536.40393918,0.00011,2]
[334653027,1723396246319,-379.89623438,0.00011,2]
[334653028,1723396246331,-1568.30176497,0.00011,2]
[334653029,1723396246342,-924.64607863,0.00011,2]
[334653030,1723396246355,-5177.5175671,0.00011,2]
[334653031,1723396246371,-1406.15,0.00011,2]
[334653032,1723396246400,-12136.4417712,0.00011,2]
[334653033,1723396246433,-1967.4999995,0.00011,2]
[334653034,1723396246445,-2015.57078776,0.00011,2]
[334653035,1723396246455,-2318.42279138,0.00011,2]
[334653036,1723396246467,-1278.44042038,0.00011,2]
[334653037,1723396246479,-8571.89705668,0.00011,2]
[334653038,1723396246490,-422.24066894,0.00011,2]
[334653041,1723396246583,-959.66047797,0.00011,2]
[334653042,1723396246796,-35160.58204864,0.00011,2]
[334653043,1723396246807,-470.22347517,0.00011,2]
[334653044,1723396246819,-2152.65565936,0.00011,2]
[334653045,1723396350760,150.0,0.00025702,120]
[334653046,1723396410738,150.0,0.00024743,120]
[334653047,1723396450437,-7000.0,9.862e-05,2]
[334653048,1723396470925,150.0,0.00026775,120]
[334653050,1723396530739,150.0,0.00026271,120]
[334653051,1723396616156,172.79,8.219e-05,2]
[334653052,1723396643939,1752.56553341,8.219e-05,2]
[334653053,1723396645057,902.58901511,8.219e-05,2]
[334653054,1723396650778,150.0,0.0002431,120]
[334653055,1723396710780,150.0,0.00026463,120]
[334653058,1723397010778,150.0,0.00025728,120]
[334653061,1723397154705,179.77,8.219e-05,2]
[334653073,1723397251006,150.0,0.00025204,120]
[334653074,1723397311335,150.0,0.00025969,120]
[334653081,1723397388835,23900.0,9.626e-05,2]
[334653106,1723397432178,-2249.6,9.709e-05,2]
[334653108,1723397432187,-166.47,9.751e-05,2]
[334653110,1723397432197,-173.2,9.778e-05,2]
[334653112,1723397432207,-50000.0,9.8e-05,2]
[334653114,1723397432216,-1113.71,9.8e-05,2]
[334653116,1723397432225,-1265.73,9.801e-05,2]
[334653118,1723397432235,-250.0,9.828e-05,2]
[334653120,1723397432246,-390.4,9.857e-05,2]
[334653122,1723397432257,-609.6,9.878e-05,2]
[334653124,1723397432266,-400.0,0.000101,3]
[334653126,1723397432275,-220.96,0.000102,2]
[334653128,1723397432285,-900.0,0.000102,3]
[334653130,1723397432294,-300.0,0.00010299,2]
[334653132,1723397432303,-1300.0,0.000103,3]
[334653134,1723397432313,-1800.0,0.000104,3]
[334653136,1723397432321,-179.77,0.00010465,2]
[334653138,1723397432331,-238.2415,0.0001049,2]
[334653140,1723397432340,-2200.0,0.000105,3]
[334653142,1723397432350,-10727.5796,0.0001059,2]
[334653143,1723397432359,-400.0,0.000106,3]
[334653144,1723397432369,-150.0,0.00010689,2]
[334653145,1723397432380,-63229.0427,0.0001069,2]
[334653146,1723397432390,-400.0,0.000107,3]
[334653147,1723397432399,-400.0,0.000108,3]
[334653148,1723397432409,-263.24769125,0.00010804,2]
[334653149,1723397432419,-1494.11319,0.0001089,2]
[334653150,1723397432430,-297.61338598,0.00010899,2]
[334653151,1723397432439,-297.61338598,0.00010899,2]
[334653152,1723397432450,-297.61338598,0.00010899,2]
[334653153,1723397432461,-297.61338598,0.00010899,2]
[334653155,1723397432471,-297.61338598,0.00010899,2]
[334653156,1723397432480,-297.61338598,0.00010899,2]
[334653157,1723397432491,-297.61338598,0.00010899,2]
[334653158,1723397432501,-297.61338598,0.00010899,2]
[334653159,1723397432510,-297.61338598,0.00010899,2]
[334653160,1723397432519,-400.0,0.000109,3]
[334653161,1723397432528,-297.61338598,0.000109,2]
[334653162,1723397432538,-157.63662071,0.000109,2]
[334653163,1723397432548,-150.0,0.00010949,2]
[334653164,1723397432559,-250.0,0.00010959,2]
[334653165,1723397432568,-2000.0,0.00010959,2]
[334653166,1723397432578,-166.47,0.0001097,2]
[334653168,1723397432587,-200.0,0.00010973,2]
[334653170,1723397432596,-161568.73726963,0.0001099,3]
[334653172,1723397432608,-371.22862648,0.0001099,3]
[334653174,1723397432619,-588.10718822,0.0001099,3]
[334653177,1723397432647,-2743.16331267,0.0001099,3]
[334653180,1723397432674,-2595.45439401,0.0001099,3]
[334653181,1723397432686,-544.0998858,0.0001099,3]
[334653182,1723397432698,-533.92040024,0.0001099,3]
[334653183,1723397432717,-438.064672,0.0001099,3]
[334653188,1723397438272,-30796.6902829,0.0001099,3]
[334653189,1723397438283,-620.16682,0.0001099,3]
[334653190,1723397438295,-693.73608387,0.0001099,3]
[334653211,1723397438915,-649.025,0.0001099,3]
[334653281,1723397440361,-54185.72723467,0.0001099,3]
[334653283,1723397440372,-968.08777415,0.0001099,3]
[334653285,1723397440386,-1129.10829927,0.0001099,3]
[334653289,1723397440536,-2488.0179701,0.0001099,3]
[334653290,1723397440548,-2437.39358701,0.0001099,3]
[334653291,1723397440618,-676.24678858,0.0001099,3]
[334653292,1723397440630,-680.58906238,0.0001099,3]
[334653293,1723397440688,-727.40483639,0.0001099,3]
[334653294,1723397440701,-136134.07792645,0.0001099,3]
[334653295,1723397440710,-1008.19505592,0.0001099,2]
[334653296,1723397440720,-2380.2458952,0.00010995,2]
[334653297,1723397440730,-150.01,0.00010999,2]
[334653298,1723397440741,-711.0,0.00011,2]
[334653299,1723397440750,-20663.44315283,0.00011,2]
[334653301,1723397440765,-689.1186,0.00011,2]
[334653302,1723397440776,-260.42874262,0.00011,2]
[334653483,1723397443242,-342.4910956,0.00010995,2]
[334653485,1723397443252,-1990.43417583,0.00011,2]
[334653487,1723397443261,-3190.49735495,0.00011,2]
[334653506,1723397444293,-632.93440001,0.00011,2]
[334653524,1723397446351,-341.13686896,0.00011,2]
[334653527,1723397667934,193.09,8.673e-05,2]
[334653528,1723397730755,150.0,0.00025877,120]
[334653529,1723397731345,411.94091013,8.673e-05,2]
[334653530,1723397734833,1310.16050547,8.673e-05,2]
[334653531,1723397735862,2565.99588991,8.673e-05,2]
[334653532,1723397744169,3070.88521436,8.673e-05,2]
[334653533,1723397744843,1371.1363752,8.673e-05,2]
[334653534,1723397746680,1268.93157185,8.673e-05,2]
[334653535,1723397749295,227.74801183,8.673e-05,2]
[334653536,1723397750743,20392.66258053,8.673e-05,2]
[334653537,1723397790711,150.0,0.00026817,120]
[334653538,1723397798824,1309.22104813,8.673e-05,2]
[334653539,1723397824862,2564.07688165,8.673e-05,2]
[334653540,1723397842316,412.06697644,8.673e-05,2]
[334653541,1723397849161,3068.59780154,8.673e-05,2]
[334653542,1723397849689,506.84448564,8.673e-05,2]
[334653544,1723397860902,20377.67537475,8.673e-05,2]
[334653549,1723398010332,150.0,8.673e-05,2]
[334653550,1723398010521,150.0,8.673e-05,2]
[334653551,1723398010716,150.0,8.673e-05,2]
[334653552,1723398010901,150.0,8.673e-05,2]
[334653553,1723398011118,150.0,8.673e-05,2]
[334653554,1723398011598,150.0,8.673e-05,2]
[334653555,1723398012003,150.0,8.673e-05,2]
[334653556,1723398012228,150.0,8.673e-05,2]
[334653557,1723398012441,150.0,8.673e-05,2]
[334653558,1723398012614,150.0,8.673e-05,2]
[334653559,1723398013413,150.0,8.673e-05,2]
[334653560,1723398013604,150.0,8.673e-05,2]
[334653561,1723398030732,150.0,0.00023861,120]
[334653562,1723398133383,198.33,8.219e-05,2]
[334653563,1723398150922,150.0,0.00025546,120]
[334653564,1723398210938,150.0,0.00026341,120]
[334653570,1723398498104,250.0,9.643e-05,2]
[334653571,1723398556524,-200.0,9.672e-05,2]
[334653572,1723398556546,-834.76,9.749e-05,2]
[334653573,1723398556570,-166.48,9.754e-05,2]
[334653574,1723398556592,-2417.0,9.772e-05,2]
[334653575,1723398556614,-2834.53014604,9.773e-05,2]
[334653576,1723398556637,-1000.0,9.773e-05,2]
[334653577,1723398556659,-632.86,9.778e-05,2]
[334653578,1723398556680,-1852.42,9.866e-05,2]
[334653582,1723398570151,4285.64,9.961e-05,2]
[334653583,1723398570847,150.0,0.00026114,120]
[334653584,1723398584221,202.56,8.219e-05,2]
[334653585,1723398603238,150.0,9.643e-05,2]
[334653586,1723398603448,150.0,9.643e-05,2]
[334653587,1723398603651,150.0,9.643e-05,2]
[334653588,1723398603858,150.0,9.643e-05,2]
[334653589,1723398604063,150.0,9.643e-05,2]
[334653590,1723398604258,150.0,9.643e-05,2]
[334653591,1723398604468,150.0,9.643e-05,2]
[334653592,1723398604674,150.0,9.643e-05,2]
[334653593,1723398604877,150.0,9.643e-05,2]
[334653594,1723398605077,150.0,9.643e-05,2]
[334653595,1723398605280,150.0,9.643e-05,2]
[334653596,1723398605506,150.0,9.643e-05,2]
[334653597,1723398605705,150.0,9.643e-05,2]
[334653598,1723398605908,150.0,9.643e-05,2]
[334653599,1723398606137,150.0,9.643e-05,2]
[334653600,1723398606367,150.0,9.643e-05,2]
[334653601,1723398606552,150.0,9.643e-05,2]
[334653602,1723398606800,150.0,9.643e-05,2]
[334653603,1723398607000,150.0,9.643e-05,2]
[334653604,1723398607623,150.0,9.643e-05,2]
[334653605,1723398607711,150.0,9.643e-05,2]
[334653606,1723398607850,150.0,9.643e-05,2]
[334653607,1723398608025,150.0,9.643e-05,2]
[334653608,1723398608203,150.0,9.643e-05,2]
[334653609,1723398608401,201.90631013,9.643e-05,2]
[334653610,1723398609386,316.43,9.919e-05,2]
[334653611,1723398630766,150.0,0.00023917,120]
[334653628,1723398631340,-300.0,0.00010014,2]
[334653631,1723398631349,-1145.77865243,0.00010015,2]
[334653639,1723398631476,-2358.18069036,0.00010015,2]
[334653640,1723398631489,-20396.04065721,0.00010015,2]
[334653641,1723398631499,-600.0,0.000101,3]
[334653642,1723398631509,-1300.0,0.000102,3]
[334653643,1723398631519,-2000.0,0.000103,3]
[334653644,1723398631528,-300.11,0.00010363,2]
[334653645,1723398631538,-2700.0,0.000104,3]
[334653646,1723398631548,-202.56,0.00010476,2]
[334653647,1723398631557,-3400.0,0.000105,3]
[334653648,1723398631567,-8944.50604644,0.00010513,2]
[334653649,1723398631576,-526.66030387,0.00010513,2]
[334653650,1723398631585,-335.4322,0.0001059,2]
[334653651,1723398631595,-600.0,0.000106,3]
[334653652,1723398631605,-1937.0,0.000107,2]
[334653653,1723398631615,-600.0,0.000107,3]
[334653654,1723398631624,-600.0,0.000108,3]
[334653655,1723398631633,-445.53983,0.0001089,2]
[334653657,1723398631644,-296.6503,0.0001089,2]
[334653658,1723398631654,-6294.86683193,0.000109,2]
[334653661,1723398631670,-3347.07412977,0.000109,2]
[334653664,1723398631682,-488.29864495,0.000109,2]
[334653666,1723398631694,-7186.79789335,0.000109,2]
[334653668,1723398631703,-4795.3106,0.000109,2]
[334653669,1723398631712,-600.0,0.000109,3]
[334653670,1723398631721,-1414.0,0.000109,2]
[334653671,1723398631731,-179.67,0.00010975,2]
[334653672,1723398631740,-1000.0,0.00010995,2]
[334653673,1723398631749,-150.01,0.00010999,2]
[334653674,1723398631759,-690.0,0.00011,2]
[334653675,1723398631769,-259.38951805,0.00011,2]
[334653676,1723398631781,-1042.5,0.00011,2]
[334653677,1723398631792,-916.50168511,0.00011,2]
[334653678,1723398631803,-377.86782155,0.00011,2]
[334653679,1723398631814,-482.99531256,0.00011,2]
[334653681,1723398637525,-9005.59263688,0.00011,2]
[334653682,1723398637536,-49196.61747749,0.00011,2]
[334653683,1723398637546,-61055.07084572,0.00011,2]
[334653684,1723398637559,-13003.8,0.00011,2]
[334653685,1723398637570,-1710.00000005,0.00011,2]
[334653686,1723398637582,-322.82250005,0.00011,2]
[334653694,1723398642269,-625.0,0.00011,2]
[334653696,1723398642278,-42.4499999,0.00011,2]
[334653707,1723398642385,-356.19588052,0.00011,2]
[334653709,1723398642396,-348.33,0.00011,2]
[334653712,1723398642407,-463.28500056,0.00011,2]
[334653714,1723398642418,-396.22089162,0.00011,2]
[334653716,1723398642429,-3162.20000006,0.00011,2]
[334653718,1723398642504,-2439.14814662,0.00011,2]
[334653719,1723398642516,-74731.5626456,0.00011,2]
[334653720,1723398642527,-2256.33146258,0.00011,2]
[334653721,1723398642538,-552.33090042,0.00011,2]
[334653722,1723398642558,-7164.35167377,0.00011,2]
[334653723,1723398642573,-1486.46443087,0.00011,2]
[334653724,1723398642588,-3011.95,0.00011,2]
[334653725,1723398642604,-369.0,0.00011,2]
[334653727,1723398642617,-437.49342232,0.00011,2]
[334653728,1723398642628,-474.18520669,0.00011,2]
[334653730,1723398642639,-1303.7,0.00011,2]
[334653733,1723398642651,-544.7642207,0.00011,2]
[334653735,1723398642663,-3162.86236937,0.00011,2]
[334653737,1723398642675,-1668.02297108,0.00011,2]
[334653740,1723398642689,-9394.98905518,0.00011,2]
[334653742,1723398642703,-1913.60066779,0.00011,2]
[334653744,1723398642717,-8739.00278943,0.00011,2]
[334653817,1723398643437,-579.35,0.00011,2]
[334654025,1723398645569,-558.0,0.00011,2]
[334654027,1723398645578,-767.98466,0.00011,2]
[334654029,1723398645589,-1246.58900404,0.00011,2]
[334654145,1723398646974,-6472.9965997,0.00011,2]
[334654146,1723398646989,-459703.39013015,0.00011,2]
[334654147,1723398647000,-18827.76902264,0.00011,2]
[334654148,1723398647011,-5269.13743549,0.00011,2]
[334654149,1723398647023,-508.5,0.00011,2]
[334654150,1723398647034,-1348.24207892,0.00011,2]
[334654151,1723398647046,-332.78,0.00011,2]
[334654152,1723398647057,-42205.49005454,0.00011,2]
[334654153,1723398647069,-886.34100481,0.00011,2]
[334654154,1723398647083,-11182.99173202,0.00011,2]
[334654155,1723398647095,-916.60793206,0.00011,2]
[334654156,1723398647106,-264.19547949,0.00011,2]
[334654157,1723398647121,-2800.21661438,0.00011,2]
[334654162,1723398657492,742.48860341,9.962e-05,2]
[334654163,1723398659660,550.0,0.0001,2]
[334654164,1723398690773,150.0,0.00025098,120]
[334654166,1723399079792,162.92494042,8.853e-05,2]
[334654167,1723399079815,35.88505958,8.853e-05,2]
[334654168,1723399110741,150.0,0.000258,120]
[334654169,1723399140495,-250.0,0.00010482,2]
[334654170,1723399140515,-200.0,0.00010541,2]
[334654171,1723399140535,-158.21,0.00010603,2]
[334654172,1723399140556,-268.36,0.00010833,2]
[334654173,1723399140578,-23900.0,0.00010833,2]
[334654174,1723399140600,-1000.0,0.000109,2]
[334654175,1723399140625,-1595.4953,0.000109,2]
[334654176,1723399140648,-1915.45145561,0.000109,2]
[334654177,1723399140670,-2500.0,0.000109,2]
[334654178,1723399140690,-343.2883076,0.000109,2]
[334654179,1723399140712,-155.53,0.00010984,2]
[334654180,1723399140734,-6119.37613467,0.00010997,2]
[334654181,1723399140756,-501.0,0.00011,2]
[334654182,1723399140780,-2093.28880212,0.00011,2]
[334654183,1723399231389,150.0,0.00026476,120]
[334654184,1723399340139,600.0,9.614e-05,2]
[334654185,1723399360058,427.23,9.699e-05,2]
[334654186,1723399397141,7572.79673936,9.699e-05,2]
[334654187,1723399398068,364.72077219,9.699e-05,2]
[334654188,1723399398987,1310.16050547,9.699e-05,2]
[334654189,1723399405770,1268.93157185,9.699e-05,2]
[334654190,1723399409954,1371.1363752,9.699e-05,2]
[334654191,1723399413924,227.74801183,9.699e-05,2]
[334654192,1723399416603,308.49156198,9.699e-05,2]
[334654193,1723399423932,2565.99588991,9.699e-05,2]
[334654194,1723399426833,3946.90351263,9.699e-05,2]
[334654195,1723399426856,2589.06678756,9.699e-05,2]
[334654196,1723399437287,3070.88521436,9.699e-05,2]
[334654197,1723399452287,3070.88521436,9.699e-05,2]
[334654198,1723399462481,304.92,9.6e-05,2]
[334654199,1723399496481,1344.4748972,9.699e-05,2]
[334654200,1723399507788,226.58152581,9.6e-05,2]
[334654202,1723399521992,271.19,9.61e-05,2]
[334654203,1723399529939,2565.99588991,9.6e-05,2]
[334654204,1723399538052,243.87,9.618e-05,2]
[334654205,1723399545438,1383.82,9.618e-05,2]
[334654206,1723399568003,250.0,9.624e-05,2]
[334654207,1723399573289,3068.99736947,9.6e-05,2]
[334654208,1723399596580,1609.31310133,0.0001,2]
[334654209,1723399596603,20000.0,0.0001,2]
[334654210,1723399596625,3390.68689867,0.0001,2]
[334654211,1723399630955,2563.11737752,9.6e-05,2]
[334654221,1723399659717,238.66,8.219e-05,2]
[334654222,1723399702301,1742.28966726,9.6e-05,2]
[334654231,1723399737961,526.66030387,9.962e-05,2]
[334654232,1723399748997,1219.19,9.597e-05,2]
[334654233,1723399753946,739.19,9.604e-05,2]
[334654234,1723399757389,9580.20575268,9.962e-05,2]
[334654235,1723399757417,10137.49689252,9.962e-05,2]
[334654236,1723399760258,3022.5,9.607e-05,2]
[334654237,1723399798947,520.0,9.616e-05,2]
[334654238,1723399830754,150.0,0.00025812,120]
[334654245,1723399831665,-321.39,0.00010323,2]
[334654246,1723399831674,-177.2529475,0.00010326,2]
[334654247,1723399831687,-144.1370525,0.00010326,2]
[334654248,1723399831696,-321.39,0.00010328,2]
[334654249,1723399831706,-321.39,0.00010331,2]
[334654250,1723399831715,-239.48118843,0.00010334,2]
[334654251,1723399831907,-81.90881157,0.00010334,2]
[334654252,1723399831917,-321.39,0.00010336,2]
[334654253,1723399831926,-321.39,0.00010339,2]
[334654254,1723399831937,-290.56803687,0.00010342,2]
[334654255,1723399831948,-30.82196313,0.00010342,2]
[334654256,1723399831958,-321.39,0.00010345,2]
[334654257,1723399831967,-105.07973766,0.00010347,2]
[334654258,1723399831978,-216.31026234,0.00010347,2]
[334654259,1723399831989,-321.39,0.0001035,2]
[334654260,1723399831998,-60.71550051,0.00010353,2]
[334654281,1723399837728,-260.67449949,0.00010353,2]
[334654282,1723399837737,-254.79813881,0.00010355,2]
[334654283,1723399837753,-66.59186119,0.00010355,2]
[334654284,1723399837762,-321.39,0.00010358,2]
[334654285,1723399837771,-321.39,0.00010361,2]
[334654286,1723399837780,-87.07605084,0.00010364,2]
[334654287,1723399837795,-234.31394916,0.00010364,2]
[334654288,1723399837803,-139.28056045,0.00010366,2]
[334654289,1723399837890,-182.10943955,0.00010366,2]
[334654290,1723399837901,-321.39,0.00010369,2]
[334654291,1723399837911,-321.39,0.00010372,2]
[334654292,1723399837921,-321.39,0.00010374,2]
[334654293,1723399837931,-300.0,0.00010449,2]
[334654294,1723399837942,-1613.87127311,0.0001045,2]
[334654295,1723399837959,-2244.96824504,0.0001045,2]
[334654296,1723399837971,-1136.8850001,0.0001045,2]
[334654297,1723399838055,-1537.10763157,0.0001045,2]
[334654298,1723399838066,-238.66,0.00010456,2]
[334654299,1723399838076,-150.0,0.00010521,2]
[334654300,1723399838087,-9116.37547692,0.000108,2]
[334654301,1723399838098,-271.19,0.00010812,2]
[334654302,1723399838108,-600.0,0.00010816,2]
[334654303,1723399838117,-520.0,0.00010818,2]
[334654304,1723399838127,-324.165,0.00010828,2]
[334654305,1723399838137,-7113.7275,0.000109,2]
[334654306,1723399838146,-2665.95441512,0.000109,2]
[334654311,1723399839799,-1207.47183,0.000109,2]
[334654312,1723399839811,-1490.17495488,0.000109,2]
[334654313,1723399839820,-3077.94650351,0.000109,2]
[334654314,1723399839932,-1504.411741,0.000109,2]
[334654315,1723399839943,-390.13155549,0.000109,2]
[334654316,1723399839953,-1000.0,0.000109,2]
[334654317,1723399839962,-1076.0,0.000109,2]
[334654318,1723399839971,-676.78766256,0.00010986,14]
[334654319,1723399840143,-58.72233744,0.00010986,14]
[334654320,1723399840153,-998.05623126,0.0001099,2]
[334654321,1723399840167,-1273.216,0.0001099,2]
[334654322,1723399840206,-2108.76960813,0.0001099,2]
[334654323,1723399840217,-1896.707013,0.00010994,2]
[334654324,1723399840227,-85487.52624812,0.00011,2]
[334654347,1723399842714,-9245.25,0.00011,2]
[334654348,1723399842726,-2829.58704795,0.00011,2]
[334654357,1723399843509,-1664.07607832,0.00011,2]
[334654358,1723399843523,-298.72,0.00011,2]
[334654359,1723399843543,-4045.835814,0.00011,2]
[334654360,1723399843558,-31434.25,0.00011,2]
[334654361,1723399843570,-4871.84765152,0.00011,2]
[334654362,1723399843579,-71241.93262095,0.00011,2]
[334654363,1723399845882,-253.90374581,0.00011,2]
[334654364,1723399846023,-223153.26284341,0.00011,2]
[334654502,1723399868367,6320.00310748,9.616e-05,2]
[334654503,1723399868391,20000.0,9.616e-05,2]
[334654504,1723399868416,20000.0,9.616e-05,2]
[334654505,1723399868443,20000.0,9.616e-05,2]
[334654506,1723399868466,20000.0,9.616e-05,2]
[334654507,1723399868490,97380.99524117,9.616e-05,2]
[334654508,1723399950812,150.0,0.00024198,120]
[334654509,1723399966875,13982.0,9.616e-05,2]
[334654510,1723399966896,10000.0,9.616e-05,2]
[334654511,1723399966916,10000.0,9.616e-05,2]
[334654512,1723399966937,10000.0,9.616e-05,2]
[334654513,1723399966956,10000.0,9.616e-05,2]
[334654514,1723399966977,1702.96683899,9.616e-05,2]
[334654515,1723400010879,150.0,0.00025362,120]
[334654516,1723400017988,1371.41352364,9.616e-05,2]
[334654517,1723400059971,227.74801183,9.616e-05,2]
[334654518,1723400104926,2898.10221118,9.616e-05,2]
[334654519,1723400188823,276.45,8.494e-05,2]
[334654520,1723400250752,150.0,0.00025612,120]
[334654521,1723400430721,150.0,0.00025451,120]
[334654522,1723400550763,150.0,0.00025254,120]
[334654523,1723400670740,150.0,0.00024073,120]
[334654524,1723400679590,262.62,8.219e-05,2]
[334654534,1723400910751,150.0,0.00026068,120]
[334654536,1723400970818,150.0,0.00025321,120]
[334654537,1723401030739,150.0,0.00024163,120]
[334654554,1723401031790,-887.63771343,9.912e-05,2]
[334654555,1723401031831,-851.53505957,9.912e-05,2]
[334654556,1723401031842,-550.0,0.0001,2]
[334654557,1723401031852,-155.53,0.00010034,2]
[334654558,1723401031862,-312.0,0.00010038,2]
[334654559,1723401031871,-250.0,0.00010046,2]
[334654560,1723401031883,-200.0,0.00010046,2]
[334654561,1723401031892,-104.04565798,0.00010048,2]
[334654562,1723401031904,-143.30434202,0.00010048,2]
[334654563,1723401031913,-166.48,0.00010128,2]
[334654564,1723401031923,-688.0,0.00010244,2]
[334654565,1723401031932,-262.62,0.00010482,2]
[334654566,1723401031942,-180.8,0.0001064,2]
[334654567,1723401031951,-300.0,0.00010899,2]
[334654568,1723401031961,-1036.44422499,0.000109,2]
[334654570,1723401037947,-1185.34288774,0.000109,2]
[334654573,1723401038164,-6369.96768305,0.000109,2]
[334654574,1723401038200,-283.83287331,0.000109,2]
[334654575,1723401038325,-646.01703091,0.000109,2]
[334654576,1723401038335,-354.8513,0.000109,2]
[334654577,1723401038344,-761.8685,0.000109,2]
[334654578,1723401038354,-3121.9051,0.000109,2]
[334654579,1723401038363,-478.86286393,0.000109,2]
[334654580,1723401038372,-169.46887535,0.000109,2]
[334654581,1723401038381,-1370.21314644,0.0001094,2]
[334654582,1723401039838,-246.16437356,0.0001094,2]
[334654584,1723401039849,-22.03562644,0.00010959,2]
[334654585,1723401039914,-227.96437356,0.00010959,2]
[334654586,1723401039924,-252.74,0.00010959,2]
[334654587,1723401039934,-150.0,0.00010979,2]
[334654588,1723401039944,-10335.50252178,0.0001098,2]
[334654589,1723401039956,-531.3,0.0001099,2]
[334654590,1723401039966,-160.05579513,0.00010997,2]
[334654591,1723401039975,-25554.04319284,0.00010999,2]
[334654592,1723401039986,-69179.44340633,0.00011,2]
[334654593,1723401040099,-759.10301363,0.00011,2]
[334654594,1723401040108,-78389.14859112,0.00011,2]
[334654595,1723401040141,-470.73536654,0.00011,2]
[334654635,1723401042863,-796.2118524,0.00011,2]
[334654638,1723401043847,-7655.68224347,0.00011,2]
[334654646,1723401046071,-36071.09115541,0.00011,2]
[334654675,1723401091291,150.0,0.00026947,120]
[334654676,1723401172101,236.35,9.102e-05,2]
[334654677,1723401270761,150.0,0.00023811,120]
[334654681,1723401644484,235.3,8.988e-05,2]
[334654690,1723402231126,227.74801183,8.988e-05,2]
[334654693,1723402232173,-166.52,0.0001042,2]
[334654694,1723402232183,-229.96017172,0.00010467,2]
[334654695,1723402232195,-193.15054583,0.00010467,2]